lending/lending_fUSD_20251111
["ID","MTS","AMOUNT","RATE_DAILY","PERIOD"]
[393642071,1762872238816,-2040.0913,0.00040717,120]
[393642072,1762872238856,-639.0,0.00040873,20]
[393642073,1762872238892,-2736.41221167,0.00041,30]
[393642074,1762872238929,-537.8359693,0.00041,30]
[393642075,1762872238968,-478.44322026,0.00041,10]
[393642076,1762872239007,-478.44322026,0.00041,7]
[393642077,1762872239046,-500.0,0.00041095,8]
[393642078,1762872239085,-500.0,0.00041096,8]
[393642079,1762872239124,-246.64,0.00041096,120]
[393642080,1762872239164,-200.0,0.00041217,120]
[393642081,1762872239203,-2174.11831543,0.0004123,5]
[393642082,1762872239368,-639.0,0.00041274,20]
[393642083,1762872239408,-2314.37,0.000414,30]
[393642084,1762872239448,-206.33121688,0.00041475,120]
[393642085,1762872239487,-160.90080936,0.000415,90]
[393642086,1762872239524,-1347.0,0.000416,120]
[393642087,1762872239561,-1347.0,0.000416,120]
[393642088,1762872239597,-1347.0,0.000416,120]
[393642089,1762872239634,-3100.0,0.00041611,120]
[393642090,1762872239671,-955.12,0.000418,90]
[393642091,1762872239705,-571.41095438,0.00041999,120]
[393642092,1762872239745,-225.98,0.00042,30]
[393642093,1762872239784,-431.27197583,0.00042,120]
[393642094,1762872239823,-317.79845517,0.00042,120]
[393642095,1762872239865,-807.75912719,0.00042,30]
[393642096,1762872239911,-622.98801957,0.00042,30]
[393642097,1762872239955,-1119.96634579,0.00042,120]
[393642098,1762872240000,-1087.48488842,0.00042,120]
[393642099,1762872240047,-627.95337324,0.00042,30]
[393642100,1762872240094,-179.32772972,0.00042,120]
[393642101,1762872240144,-2117.01,0.00042,14]
[393642102,1762872240191,-816.84,0.000421,30]
[393642103,1762872240238,-1797.77597336,0.00042121,120]
[393642104,1762872240286,-2000.0,0.00042199,30]
[393642105,1762872240331,-1000.0,0.000423,7]
[393642106,1762872240377,-200.0,0.00042317,120]
[393642107,1762872240422,-2000.0,0.00042317,120]
[393642108,1762872240465,-309.06025452,0.00042465,11]
[393642109,1762872240509,-211.15,0.00042476,60]
[393642110,1762872240554,-554.28905216,0.000425,120]
[393642111,1762872240598,-685.53469944,0.000425,120]
[393642112,1762872240643,-150.0,0.00042566,30]
[393642113,1762872240685,-214.3699946,0.00042566,30]
[393642114,1762872240728,-150.0,0.00042566,30]
[393642115,1762872240776,-2605.62793815,0.00042566,30]
[393642116,1762872240821,-150.0,0.00042566,30]
[393642117,1762872240866,-332.43106194,0.00042566,30]
[393642118,1762872240907,-162.76175569,0.00042603,30]
[393642119,1762872240947,-340.43302763,0.000427,90]
[393642120,1762872240986,-3216.89182114,0.000428,120]
[393642121,1762872241027,-211.0,0.0004295,30]
[393642122,1762872241066,-500.0,0.00043,120]
[393642123,1762872241110,-500.0,0.00043,120]
[393642124,1762872241153,-500.0,0.00043,120]
[393642125,1762872241197,-500.0,0.00043,120]
[393642126,1762872241241,-500.0,0.00043,120]
[393642127,1762872241285,-500.0,0.00043,120]
[393642128,1762872241332,-500.0,0.00043,120]
[393642129,1762872241377,-500.0,0.00043,120]
[393642130,1762872241421,-500.0,0.00043,120]
[393642131,1762872241466,-500.0,0.00043,120]
[393642132,1762872241511,-500.0,0.00043,120]
[393642133,1762872241558,-500.0,0.00043,120]
[393642134,1762872241603,-500.0,0.00043,120]
[393642135,1762872241653,-500.0,0.00043,120]
[393642136,1762872241699,-500.0,0.00043,120]
[393642137,1762872241745,-500.0,0.00043,120]
[393642138,1762872241789,-500.0,0.00043,120]
[393642139,1762872241834,-500.0,0.00043,120]
[393642140,1762872241880,-500.0,0.00043,120]
[393642141,1762872241925,-500.0,0.00043,120]
[393642142,1762872241969,-500.0,0.00043,120]
[393642143,1762872242015,-500.0,0.00043,120]
[393642144,1762872242065,-500.0,0.00043,120]
[393642145,1762872242113,-500.0,0.00043,120]
[393642146,1762872242157,-500.0,0.00043,120]
[393642147,1762872242202,-500.0,0.00043,120]
[393642148,1762872242249,-500.0,0.00043,120]
[393642149,1762872242295,-500.0,0.00043,120]
[393642150,1762872242341,-2878.82301302,0.00043,120]
[393642151,1762872242386,-214.0,0.00043,7]
[393642152,1762872242433,-2630.28149546,0.00043,120]
[393642153,1762872242480,-1371.93734221,0.00043,120]
[393642154,1762872242527,-150.0,0.00043,120]
[393642155,1762872242572,-204.04528081,0.00043,120]
[393642156,1762872242618,-2460.64951702,0.00043,120]
[393642157,1762872242660,-189.19474819,0.00043,120]
[393642158,1762872242700,-150.0,0.00043,90]
[393642159,1762872242741,-2314.37,0.00043,30]
[393642160,1762872242781,-150.0,0.00043014,90]
[393642161,1762872242822,-162.76175569,0.00043068,30]
[393642162,1762872242865,-1717.5228459,0.000431,120]
[393642163,1762872242907,-1444.8735,0.0004322,30]
[393642164,1762872242950,-1528.12983077,0.0004328,120]
[393642165,1762872242993,-206.33121688,0.00043301,120]
[393642166,1762872243039,-2117.01,0.000436,14]
[393642167,1762872243082,-834.9,0.0004369,120]
[393642168,1762872243126,-618.14400244,0.000437,120]
[393642169,1762872243170,-1048.12,0.00043767,30]
[393642170,1762872243215,-1048.12,0.00043767,30]
[393642171,1762872243259,-1048.12,0.00043767,30]
[393642172,1762872243303,-1048.12,0.00043767,30]
[393642173,1762872243346,-181.27,0.00043789,120]
[393642174,1762872243389,-1024.38774953,0.000438,120]
[393642175,1762872243429,-481.49949847,0.000438,120]
[393642176,1762872243476,-816.84,0.000438,30]
[393642177,1762872243639,-600.0,0.00043836,35]
[393642178,1762872243685,-3239.01477432,0.00043987,120]
[393642179,1762872243733,-153.0,0.00044,120]
[393642180,1762872243782,-155.0,0.00044,120]
[393642181,1762872243824,-301.32749164,0.00044,120]
[393642182,1762872243868,-1078.20068972,0.00044,120]
[393642183,1762872243911,-495.38735669,0.00044,30]
[393642184,1762872243955,-2407.88921955,0.00044,120]
[393642185,1762872243999,-661.05227318,0.00044,120]
[393642186,1762872244041,-173.12658569,0.00044,120]
[393642187,1762872244085,-1393.35305227,0.00044,120]
[393642188,1762872244130,-1048.12,0.00044041,30]
[393642189,1762872244174,-1048.12,0.00044041,30]
[393642190,1762872244217,-2000.0,0.00044082,10]
[393642191,1762872244262,-150.0,0.00044103,120]
[393642192,1762872244306,-158.3652614,0.0004425,120]
[393642193,1762872244349,-1048.12,0.00044315,30]
[393642194,1762872244393,-1048.12,0.00044315,30]
[393642195,1762872244437,-150.0,0.00044324,120]
[393642196,1762872244480,-1540.58644845,0.00044388,120]
[393642197,1762872244523,-1229.07524311,0.000444,120]
[393642198,1762872244564,-2314.37,0.000444,30]
[393642199,1762872244604,-170.04,0.000444,30]
[393642200,1762872244646,-962.78807342,0.000445,120]
[393642201,1762872244686,-174.11489105,0.00044533,30]
[393642202,1762872244727,-1364.1318683,0.0004455,120]
[393642203,1762872244771,-1048.12,0.00044589,30]
[393642204,1762872244817,-1048.12,0.00044589,30]
[393642205,1762872244861,-153.0,0.000447,120]
[393642206,1762872244903,-939.0,0.000447,30]
[393642207,1762872244944,-774.0,0.000447,30]
[393642208,1762872244990,-150.0,0.00044762,120]
[393642209,1762872245035,-1048.12,0.00044863,30]
[393642210,1762872245079,-1048.12,0.00044863,30]
[393642211,1762872245123,-150.0,0.00044877,90]
[393642212,1762872245167,-211.15,0.00044884,60]
[393642213,1762872245212,-585.05792833,0.0004489,120]
[393642214,1762872245259,-1156.65,0.000449,120]
[393642215,1762872245306,-1005.74285027,0.000449,30]
[393642216,1762872245350,-2597.0,0.000449,120]
[393642217,1762872245393,-211.0,0.0004496,30]
[393642218,1762872245437,-211.0,0.0004496,30]
[393642219,1762872245478,-501.19400144,0.00044973,10]
[393642221,1762872245520,-2989.80891532,0.0004499,120]
[393642222,1762872245564,-151.0,0.00044997,120]
[393642223,1762872245606,-1358.2336984,0.00044998,120]
[393642224,1762872245653,-323535.57577439,0.00045,120]
[393642225,1762872271681,-5000.0,0.00039867,30]
[393642226,1762872271724,-191.02,0.000399,60]
[393642227,1762872271771,-2298.26245785,0.00039937,15]
[393642228,1762872271816,-151.0,0.00039964,14]
[393642229,1762872271861,-151.0,0.00040035,14]
[393642230,1762872271904,-150.0,0.00040035,20]
[393642231,1762872271949,-151.0,0.00040037,120]
[393642232,1762872271993,-151.0,0.00040037,120]
[393642233,1762872272040,-151.0,0.00040037,120]
[393642234,1762872272089,-219.205586,0.00040037,120]
[393642235,1762872272164,-2577.89450993,0.00040037,29]
[393642236,1762872272217,-262.72460208,0.00040084,98]
[393642237,1762872272268,-5516.0,0.000402,5]
[393642238,1762872272317,-573.07,0.000419,90]
[393642239,1762872272365,-203.83,0.00043014,120]
[393642240,1762872272413,-151.0,0.00044997,120]
[393642241,1762872272463,-982101.99284414,0.00045,120]
[393642242,1762872275426,-535.69062761,0.00038299,15]
[393642243,1762872275499,-424.444258,0.00040039,31]
[393642244,1762872275543,-365.67938349,0.00040039,31]
[393642245,1762872275588,-411.85801715,0.00040039,31]
[393642246,1762872275632,-349.13724912,0.00040039,15]
[393642247,1762872275678,-500.0,0.00040039,31]
[393642248,1762872275722,-500.0,0.00040039,31]
[393642249,1762872275779,-94362.43138147,0.00045,120]
[393642250,1762872275825,-155.0,0.00045,120]
[393642251,1762872275872,-902395.75908316,0.00045,120]
[393642252,1762872279151,-97604.24091684,0.00045,120]
[393642253,1762872279202,-902395.75908316,0.00045,120]
[393642254,1762872282548,-97604.24091684,0.00045,120]
[393642255,1762872282596,-902395.75908316,0.00045,120]
[393642256,1762872297654,-249.94479774,0.00040039,31]
[393642257,1762872297701,-174.11489105,0.00044533,30]
[393642258,1762872297745,-500000.0,0.000449,120]
[393642259,1762872297796,-97604.24091684,0.00045,120]
[393642260,1762872297840,-401971.69939437,0.00045,120]
[393642261,1762872303590,-2447.7828169,0.000428,120]
[393642262,1762872303643,-198028.30060563,0.00045,120]
[393642263,1762872303693,-1000000.0,0.00045,120]
[393642264,1762872303740,-1000000.0,0.00045,120]
[393642265,1762872303791,-1000000.0,0.00045,120]
[393642266,1762872303837,-800000.0,0.00045,120]
[393642267,1762872303878,-215.8,0.00045,37]
[393642268,1762872303924,-999308.11657747,0.00045,120]
[393642269,1762872307412,-150.0,0.00042566,30]
[393642270,1762872307460,-500000.0,0.00044999,120]
[393642271,1762872307504,-250.0,0.00044999,120]
[393642272,1762872307552,-691.88342253,0.00045,120]
[393642273,1762872307600,-1000000.0,0.00045,120]
[393642274,1762872307647,-500000.0,0.00045,120]
[393642275,1762872307693,-1037.83951996,0.00045,120]
[393642276,1762872307738,-978.5295516,0.00045,120]
[393642277,1762872307783,-789.07972158,0.00045,120]
[393642278,1762872307829,-304.72167451,0.00045,120]
[393642279,1762872307876,-1146.04939111,0.00045,120]
[393642280,1762872307921,-728.75951609,0.00045,120]
[393642281,1762872307966,-507.87320782,0.00045,120]
[393642282,1762872308012,-2251.14296027,0.00045,120]
[393642283,1762872308059,-852.22040782,0.00045,120]
[393642284,1762872308105,-2932.5966224,0.00045,120]
[393642285,1762872308151,-189.32086409,0.00045,30]
[393642286,1762872308200,-185.6215755,0.00045,120]
[393642287,1762872308251,-2306.97386963,0.00045,120]
[393642288,1762872308300,-606.68313833,0.00045,10]
[393642289,1762872308352,-9648.82,0.00045,120]
[393642290,1762872308402,-2117.01,0.00045,14]
[393642291,1762872308452,-154.05,0.00045,120]
[393642292,1762872308505,-500000.0,0.00045,120]
[393642293,1762872308559,-800000.0,0.00045,120]
[393642294,1762872308619,-800000.0,0.00045,120]
[393642295,1762872308675,-800000.0,0.00045,120]
[393642296,1762872308729,-72170.82455676,0.00045,120]
[393642297,1762872321776,-157.36932522,0.00039937,15]
[393642298,1762872321824,-219.63,0.0004,14]
[393642299,1762872321873,-571.79,0.0004,30]
[393642300,1762872321945,-196.75917333,0.00042566,30]
[393642301,1762872321991,-571.79,0.000431,30]
[393642302,1762872322040,-250.0,0.00044999,120]
[393642303,1762872322086,-250.0,0.00044999,120]
[393642304,1762872322135,-250.0,0.00044999,120]
[393642305,1762872322183,-250.0,0.00044999,120]
[393642306,1762872322237,-151.0,0.00044999,120]
[393642307,1762872322284,-250.0,0.00044999,120]
[393642308,1762872322330,-250.0,0.00044999,120]
[393642309,1762872322376,-151.0,0.00044999,120]
[393642310,1762872322421,-151.0,0.00044999,120]
[393642311,1762872322468,-250.0,0.00044999,120]
[393642312,1762872322519,-250.0,0.00044999,120]
[393642313,1762872322565,-151.0,0.00044999,120]
[393642314,1762872322609,-151.0,0.00044999,120]
[393642315,1762872322652,-250.0,0.00044999,120]
[393642316,1762872322696,-250.0,0.00044999,120]
[393642317,1762872322740,-151.0,0.00044999,120]
[393642318,1762872322787,-151.0,0.00044999,120]
[393642319,1762872322833,-250.0,0.00044999,120]
[393642320,1762872322877,-250.0,0.00044999,120]
[393642321,1762872322923,-151.0,0.00044999,120]
[393642322,1762872322970,-151.0,0.00044999,120]
[393642323,1762872323015,-250.0,0.00044999,120]
[393642324,1762872323062,-250.0,0.00044999,120]
[393642325,1762872323111,-151.0,0.00044999,120]
[393642326,1762872323159,-151.0,0.00044999,120]
[393642327,1762872323209,-250.0,0.00044999,120]
[393642328,1762872323258,-250.0,0.00044999,120]
[393642329,1762872323305,-151.0,0.00044999,120]
[393642330,1762872323366,-151.0,0.00044999,120]
[393642331,1762872323414,-250.0,0.00044999,120]
[393642332,1762872323462,-250.0,0.00044999,120]
[393642333,1762872323515,-151.0,0.00044999,120]
[393642334,1762872323564,-151.0,0.00044999,120]
[393642335,1762872323611,-151.0,0.00044999,120]
[393642336,1762872323658,-250.0,0.00044999,120]
[393642337,1762872323705,-151.0,0.00044999,120]
[393642338,1762872323754,-250.0,0.00044999,120]
[393642339,1762872323799,-151.0,0.00044999,120]
[393642340,1762872323847,-151.0,0.00044999,120]
[393642341,1762872323893,-250.0,0.00044999,120]
[393642342,1762872323941,-151.0,0.00044999,120]
[393642343,1762872323989,-151.0,0.00044999,120]
[393642344,1762872324041,-250.0,0.00044999,120]
[393642345,1762872324090,-153.91462054,0.00044999,120]
[393642346,1762872324139,-250.0,0.00044999,120]
[393642347,1762872324188,-151.0,0.00044999,120]
[393642348,1762872324238,-250.0,0.00044999,120]
[393642349,1762872324288,-151.0,0.00044999,120]
[393642350,1762872324337,-250.0,0.00044999,120]
[393642351,1762872324386,-151.0,0.00044999,120]
[393642352,1762872324435,-151.0,0.00044999,120]
[393642353,1762872324486,-250.0,0.00044999,120]
[393642354,1762872324532,-250.0,0.00044999,120]
[393642355,1762872324579,-151.0,0.00044999,120]
[393642356,1762872324627,-151.0,0.00044999,120]
[393642357,1762872324674,-250.0,0.00044999,120]
[393642358,1762872324721,-255.49147654,0.00044999,120]
[393642359,1762872324767,-250.0,0.00044999,120]
[393642360,1762872324813,-151.0,0.00044999,120]
[393642361,1762872324864,-250.0,0.00044999,120]
[393642362,1762872324910,-151.0,0.00044999,120]
[393642363,1762872324959,-250.0,0.00044999,120]
[393642364,1762872325007,-151.0,0.00044999,120]
[393642365,1762872325055,-250.0,0.00044999,120]
[393642366,1762872325106,-250.0,0.00044999,120]
[393642367,1762872325157,-151.0,0.00044999,120]
[393642368,1762872325207,-156.587,0.00044999,120]
[393642369,1762872325254,-250.0,0.00044999,120]
[393642370,1762872325301,-162.380719,0.00044999,120]
[393642371,1762872325349,-500000.0,0.00044999,120]
[393642372,1762872325397,-151.0,0.00044999,120]
[393642373,1762872325444,-250.0,0.00044999,120]
[393642374,1762872325490,-168.3888056,0.00044999,120]
[393642375,1762872325537,-250.0,0.00044999,120]
[393642376,1762872325586,-151.0,0.00044999,120]
[393642377,1762872325634,-174.61919141,0.00044999,120]
[393642378,1762872325681,-177.10850097,0.00044999,120]
[393642379,1762872325730,-151.0,0.00044999,120]
[393642380,1762872325776,-193.63459898,0.00044999,120]
[393642381,1762872325824,-151.0,0.00044999,120]
[393642382,1762872325877,-727829.17544324,0.00045,120]
[393642383,1762872325927,-800000.0,0.00045,120]
[393642384,1762872325980,-800000.0,0.00045,120]
[393642385,1762872326030,-200000.0,0.00045,120]
[393642386,1762872326076,-300.0,0.00045,120]
[393642387,1762872326275,-150.0,0.00045,120]
[393642388,1762872326324,-150.0,0.00045,120]
[393642389,1762872326369,-150.0,0.00045,120]
[393642390,1762872326413,-420.0,0.00045,120]
[393642391,1762872326457,-158.75540727,0.00045,120]
[393642392,1762872326501,-500000.0,0.000451,120]
[393642393,1762872326547,-205.60355731,0.00045127,120]
[393642394,1762872326592,-206.33121688,0.00045127,120]
[393642395,1762872326635,-1048.12,0.00045137,30]
[393642396,1762872326679,-1048.12,0.00045137,30]
[393642397,1762872326723,-151.0,0.00045197,120]
[393642398,1762872326766,-171.31067576,0.000452,120]
[393642399,1762872326812,-500000.0,0.000452,120]
[393642400,1762872326858,-500000.0,0.0004525,120]
[393642401,1762872326902,-151.0,0.00045297,120]
[393642402,1762872326962,-450416.12028795,0.000453,120]
[393642409,1762872452121,-5000.0,0.0003959,30]
[393642410,1762872452228,-151.0,0.00040038,120]
[393642411,1762872452316,-301.637509,0.00040038,120]
[393642412,1762872452404,-1388.62,0.000401,30]
[393642413,1762872452492,-1388.62,0.000431,30]
[393642414,1762872452574,-600.0,0.00043836,35]
[393642415,1762872452650,-174.11489106,0.00044533,30]
[393642416,1762872452729,-300.0,0.00045,120]
[393642417,1762872452814,-150.0,0.00045,120]
[393642418,1762872452893,-150.0,0.00045,120]
[393642419,1762872452967,-500.0,0.00045014,30]
[393642420,1762872453052,-500.0,0.00045014,30]
[393642421,1762872453145,-500.0,0.00045014,30]
[393642422,1762872453236,-151.0,0.00045079,120]
[393642423,1762872453327,-200.0,0.00045136,30]
[393642424,1762872453413,-207.4,0.00045136,30]
[393642425,1762872453499,-215.0738,0.00045136,30]
[393642426,1762872453588,-223.0315306,0.00045136,30]
[393642427,1762872453677,-231.28369723,0.00045136,30]
[393642428,1762872453772,-239.84119403,0.00045136,30]
[393642429,1762872453878,-248.71531821,0.00045136,30]
[393642430,1762872453978,-257.91778498,0.00045136,30]
[393642431,1762872454073,-267.46074303,0.00045136,30]
[393642432,1762872454166,-500.0,0.00045288,30]
[393642433,1762872454259,-500.0,0.00045288,30]
[393642434,1762872454350,-160.0,0.00045299,120]
[393642435,1762872454442,-250.0,0.00045299,120]
[393642436,1762872454531,-300.0,0.00045299,120]
[393642437,1762872454621,-250.0,0.00045299,120]
[393642438,1762872454714,-151.0,0.00045299,120]
[393642439,1762872454813,-160.0,0.00045299,120]
[393642440,1762872454911,-311.1,0.00045299,120]
[393642441,1762872455004,-250.0,0.00045299,120]
[393642442,1762872455099,-160.0,0.00045299,120]
[393642443,1762872455195,-250.0,0.00045299,120]
[393642444,1762872455284,-151.0,0.00045299,120]
[393642445,1762872455376,-250.0,0.00045299,120]
[393642446,1762872455464,-160.0,0.00045299,120]
[393642447,1762872455553,-250.0,0.00045299,120]
[393642448,1762872455640,-250.0,0.00045299,120]
[393642449,1762872455722,-151.0,0.00045299,120]
[393642450,1762872455810,-160.0,0.00045299,120]
[393642451,1762872455901,-250.0,0.00045299,120]
[393642452,1762872455990,-250.0,0.00045299,120]
[393642453,1762872456077,-250.0,0.00045299,120]
[393642454,1762872456165,-151.0,0.00045299,120]
[393642455,1762872456258,-160.0,0.00045299,120]
[393642456,1762872456346,-250.0,0.00045299,120]
[393642457,1762872456430,-250.0,0.00045299,120]
[393642458,1762872456507,-250.0,0.00045299,120]
[393642459,1762872456581,-151.0,0.00045299,120]
[393642460,1762872456659,-176.78201091,0.00045299,120]
[393642461,1762872456753,-250.0,0.00045299,120]
[393642462,1762872456835,-151.0,0.00045299,120]
[393642463,1762872456919,-250.0,0.00045299,120]
[393642464,1762872456997,-220.0,0.00045299,120]
[393642465,1762872457080,-250.0,0.00045299,120]
[393642466,1762872457166,-250.0,0.00045299,120]
[393642467,1762872457257,-151.0,0.00045299,120]
[393642468,1762872457346,-220.0,0.00045299,120]
[393642469,1762872457431,-250.0,0.00045299,120]
[393642470,1762872457513,-250.0,0.00045299,120]
[393642471,1762872457600,-250.0,0.00045299,120]
[393642472,1762872457679,-264.48609165,0.00045299,120]
[393642473,1762872457755,-151.0,0.00045299,120]
[393642474,1762872457834,-250.0,0.00045299,120]
[393642475,1762872457914,-250.0,0.00045299,120]
[393642476,1762872457989,-221.17711777,0.00045299,120]
[393642477,1762872458072,-152.48973594,0.00045299,120]
[393642478,1762872458160,-250.0,0.00045299,120]
[393642479,1762872458249,-151.0,0.00045299,120]
[393642480,1762872458341,-194.4058916,0.00045299,120]
[393642481,1762872458429,-250.0,0.00045299,120]
[393642482,1762872458515,-156.587,0.00045299,120]
[393642483,1762872458600,-151.0,0.00045299,120]
[393642484,1762872458685,-162.380719,0.00045299,120]
[393642485,1762872458764,-250.0,0.00045299,120]
[393642486,1762872458848,-151.0,0.00045299,120]
[393642487,1762872458932,-151.0,0.00045299,120]
[393642488,1762872459015,-289.5339604,0.00045299,120]
[393642489,1762872459105,-168.3888056,0.00045299,120]
[393642490,1762872459195,-151.0,0.00045299,120]
[393642491,1762872459281,-174.61919141,0.00045299,120]
[393642492,1762872459371,-151.0,0.00045299,120]
[393642493,1762872459453,-151.0,0.00045299,120]
[393642494,1762872459528,-181.08010149,0.00045299,120]
[393642495,1762872459604,-151.0,0.00045299,120]
[393642496,1762872459852,-414.0,0.00045299,120]
[393642497,1762872459939,-151.0,0.00045299,120]
[393642498,1762872460026,-151.0,0.00045299,120]
[393642499,1762872460113,-173.63104048,0.00045299,120]
[393642500,1762872460198,-151.0,0.00045299,120]
[393642501,1762872460286,-429.318,0.00045299,120]
[393642502,1762872460372,-151.0,0.00045299,120]
[393642503,1762872460453,-152.50844048,0.00045299,120]
[393642504,1762872460529,-151.0,0.00045299,120]
[393642505,1762872460608,-445.202766,0.00045299,120]
[393642506,1762872460682,-151.0,0.00045299,120]
[393642507,1762872460757,-151.0,0.00045299,120]
[393642508,1762872460830,-250.0,0.00045299,120]
[393642509,1762872460905,-151.0,0.00045299,120]
[393642510,1762872460983,-461.67526834,0.00045299,120]
[393642511,1762872461061,-250.0,0.00045299,120]
[393642512,1762872461142,-151.0,0.00045299,120]
[393642513,1762872461227,-154.08540463,0.00045299,120]
[393642514,1762872461309,-478.75725327,0.00045299,120]
[393642515,1762872461395,-250.0,0.00045299,120]
[393642516,1762872461479,-151.0,0.00045299,120]
[393642517,1762872461557,-525.93038559,0.00045299,120]
[393642518,1762872461628,-250.0,0.00045299,120]
[393642519,1762872461703,-151.0,0.00045299,120]
[393642520,1762872461779,-250.0,0.00045299,120]
[393642521,1762872461852,-151.0,0.00045299,120]
[393642522,1762872461926,-151.0,0.00045299,120]
[393642523,1762872461997,-250.0,0.00045299,120]
[393642524,1762872462073,-151.0,0.00045299,120]
[393642525,1762872462150,-250.0,0.00045299,120]
[393642526,1762872462227,-151.0,0.00045299,120]
[393642527,1762872462305,-151.0,0.00045299,120]
[393642528,1762872462389,-250.0,0.00045299,120]
[393642529,1762872462473,-151.0,0.00045299,120]
[393642530,1762872462554,-151.0,0.00045299,120]
[393642531,1762872462626,-250.0,0.00045299,120]
[393642532,1762872462696,-151.0,0.00045299,120]
[393642533,1762872462763,-151.0,0.00045299,120]
[393642534,1762872462834,-151.0,0.00045299,120]
[393642535,1762872462902,-151.0,0.00045299,120]
[393642536,1762872462970,-151.0,0.00045299,120]
[393642537,1762872463041,-151.0,0.00045299,120]
[393642538,1762872463135,-151.0,0.00045299,120]
[393642539,1762872463214,-151.0,0.00045299,120]
[393642540,1762872463293,-151.0,0.00045299,120]
[393642541,1762872463372,-151.0,0.00045299,120]
[393642542,1762872463446,-151.0,0.00045299,120]
[393642543,1762872463523,-151.0,0.00045299,120]
[393642544,1762872463598,-151.0,0.00045299,120]
[393642545,1762872463684,-151.0,0.00045299,120]
[393642546,1762872463768,-151.0,0.00045299,120]
[393642547,1762872463843,-151.0,0.00045299,120]
[393642548,1762872463920,-151.0,0.00045299,120]
[393642549,1762872463995,-151.0,0.00045299,120]
[393642550,1762872464079,-151.0,0.00045299,120]
[393642551,1762872464168,-151.0,0.00045299,120]
[393642552,1762872464252,-151.0,0.00045299,120]
[393642553,1762872464340,-151.0,0.00045299,120]
[393642554,1762872464424,-151.0,0.00045299,120]
[393642555,1762872464500,-151.0,0.00045299,120]
[393642556,1762872464575,-151.0,0.00045299,120]
[393642557,1762872464651,-151.0,0.00045299,120]
[393642558,1762872464722,-151.0,0.00045299,120]
[393642559,1762872464797,-151.0,0.00045299,120]
[393642560,1762872464876,-151.0,0.00045299,120]
[393642561,1762872464959,-151.0,0.00045299,120]
[393642562,1762872465047,-151.0,0.00045299,120]
[393642563,1762872465135,-151.0,0.00045299,120]
[393642564,1762872465217,-151.0,0.00045299,120]
[393642565,1762872465298,-300.0,0.00045299,120]
[393642566,1762872465386,-49583.87971205,0.000453,120]
[393642567,1762872465466,-500000.0,0.000454,120]
[393642568,1762872465541,-151.0,0.00045497,120]
[393642569,1762872465619,-153.0,0.000455,120]
[393642570,1762872465697,-500000.0,0.000455,120]
[393642571,1762872465775,-500000.0,0.000455,120]
[393642572,1762872465851,-833.70034204,0.00045543,120]
[393642573,1762872465922,-500.0,0.00045562,30]
[393642574,1762872465991,-500.0,0.00045562,30]
[393642575,1762872466067,-500000.0,0.000456,120]
[393642576,1762872466148,-192.35,0.00045626,120]
[393642577,1762872466233,-650.49217284,0.000457,120]